{"text_format":"3","workbook":"xlsx","n_sheets":1,"sheets":["Faktura"],"not_rendered":{"images":1,"defined_names":14},"read":"whole","date_system":"1900"}

{"sheet":"Faktura","index":0,"n_rows":33,"n_cols":6,"rows_kept":33,"merged":[[0,1,0,5],[1,1,1,5],[9,1,9,5],[10,1,10,2],[10,3,11,4],[10,5,11,5],[11,1,11,2],[12,1,12,2],[12,3,13,4],[12,5,13,5],[13,1,13,2],[14,1,14,2],[29,1,29,2],[30,1,31,2],[32,1,32,2]]}
[null,"FAKTURA"]
[null,"Nazwa firmy"]
[]
[null,"321 Avenue A",null,null,"Data:",{"$f":"TODAY()","v":"2022-12-21"}]
[null,"Portland, OR 12345",null,null,"Faktura nr",1111]
[null,"Telefon: (206) 555-1163",null,null,"Dla","ZZ NR 123456"]
[null,"Faks: (206) 555-1164"]
[null,"someone@websitegoeshere.com"]
[]
[null,"Odbiorca faktury:"]
[null,"Natasha Jones",null,"Dla pozycji, w przypadku których ta kwota jest przekroczona, przysługuje dodatkowy rabat",null,{"v":100,"d":"100 zł"}]
[null,"Central Beauty"]
[null,"123 Main St.",null,"% rabatu",null,{"v":0.1,"d":"10%"}]
[null,"Manhattan, NY 98765"]
[null,"(321) 555-1234"]
[]
[null,"Ilość","Opis","Cena jednostkowa","Kwota","Zastosowany rabat"]
[null,1,"Pozycja numer 1",{"v":2,"d":"2.00 zł"},{"$f":"Kwota","v":{"v":2,"d":"2.00 zł"}},{"$f":"Zastosowany_rabat","v":0}]
[null,1,"Pozycja numer 2",{"v":2,"d":"2.00 zł"},{"$f":"Kwota","v":{"v":2,"d":"2.00 zł"}},{"$f":"Zastosowany_rabat","v":0}]
[null,1,"Pozycja numer 3",{"v":2,"d":"2.00 zł"},{"$f":"Kwota","v":{"v":2,"d":"2.00 zł"}},{"$f":"Zastosowany_rabat","v":0}]
[{"$nulls":4},{"$f":"Kwota","v":0},{"$f":"Zastosowany_rabat","v":0}]
[{"$nulls":4},{"$f":"Kwota","v":0},{"$f":"Zastosowany_rabat","v":0}]
[{"$nulls":4},{"$f":"Kwota","v":0},{"$f":"Zastosowany_rabat","v":0}]
[{"$nulls":4},{"$f":"Kwota","v":0},{"$f":"Zastosowany_rabat","v":0}]
[{"$nulls":4},{"$f":"Kwota","v":0},{"$f":"Zastosowany_rabat","v":0}]
[{"$nulls":4},{"$f":"Kwota","v":0},{"$f":"Zastosowany_rabat","v":0}]
[{"$nulls":4},{"$f":"Kwota","v":0},{"$f":"Zastosowany_rabat","v":0}]
[{"$nulls":4},{"$f":"Kwota","v":0},{"$f":"Zastosowany_rabat","v":0}]
[null,"Suma częściowa",null,null,{"$f":"SUBTOTAL(109,Szczegóły_faktury[Kwota])","v":{"v":6,"d":"6.00 zł"}}]
[null,"Wszystkie przelewy należy wystawić na firmę <nazwa firmy>.",null,"Kredyt ",{"v":1000,"d":"1,000.00 zł"}]
[null,"W razie jakichkolwiek pytań dotyczących tej faktury należy skontaktować się z następującą osobą: <Imię i nazwisko>, <numer telefonu lub adres e-mail>.\n",null,"Podatek ",{"v":0.098,"d":"9.80%"}]
[{"$nulls":3},"Dodatkowy rabat ",{"v":0.12,"d":"12%"}]
[null,"Dziękujemy za korzystanie z naszych usług!",null,"Saldo należne ",{"$f":"Saldo_należne","v":{"v":-994.20256,"d":"-994.20 zł"}}]